fUSD/lending_fUSD_20250128
["ID","MTS","AMOUNT","RATE_DAILY","PERIOD"]
[350679502,1738059033907,-500.0,0.00018698,2]
[350679503,1738059033917,-574.77,0.00018698,2]
[350679504,1738059033926,-500.0,0.00018698,2]
[350679505,1738059033935,-500.0,0.00018698,2]
[350679506,1738059033944,-500.0,0.00018698,2]
[350679507,1738059033954,-927.86,0.00018698,2]
[350679508,1738059033964,-500.0,0.00018698,2]
[350679509,1738059033974,-500.0,0.00018698,2]
[350679510,1738059033983,-500.0,0.00018698,2]
[350679511,1738059033993,-500.0,0.00018698,2]
[350679512,1738059034002,-500.0,0.00018698,2]
[350679513,1738059034012,-500.0,0.00018698,2]
[350679514,1738059034021,-500.0,0.00018698,2]
[350679515,1738059034030,-579.69,0.00018698,2]
[350679516,1738059034040,-503.64862548,0.00018698,2]
[350679517,1738059034049,-500.0,0.00018698,2]
[350679518,1738059034058,-718.58,0.00018698,2]
[350679519,1738059034068,-500.0,0.00018698,2]
[350679520,1738059034077,-500.0,0.00018698,2]
[350679521,1738059034087,-500.0,0.00018698,2]
[350679522,1738059034097,-513.68864377,0.00018698,2]
[350679523,1738059034106,-504.85795415,0.00018698,2]
[350679524,1738059034115,-508.55536438,0.00018698,2]
[350679525,1738059034124,-500.0,0.00018698,2]
[350679526,1738059034134,-500.6957047,0.00018698,2]
[350679527,1738059034144,-505.27164321,0.00018698,2]
[350679528,1738059034153,-664.36,0.00018698,2]
[350679529,1738059034162,-511.2145019,0.00018698,2]
[350679530,1738059034172,-500.0,0.00018698,2]
[350679531,1738059034181,-500.0,0.00018698,2]
[350679532,1738059034190,-500.0,0.00018698,2]
[350679533,1738059034199,-500.0,0.00018698,2]
[350679534,1738059034208,-500.0,0.00018698,2]
[350679535,1738059034218,-500.0,0.00018698,2]
[350679536,1738059034229,-922.91,0.00018698,2]
[350679537,1738059034240,-500.0,0.00018698,2]
[350679538,1738059034249,-500.0,0.00018698,2]
[350679539,1738059034258,-500.0,0.00018698,2]
[350679540,1738059034268,-500.0,0.00018698,2]
[350679541,1738059034278,-500.0,0.00018698,2]
[350679542,1738059034288,-500.0,0.00018698,2]
[350679543,1738059034298,-898.63,0.00018698,2]
[350679544,1738059034307,-500.0,0.00018698,2]
[350679545,1738059034317,-500.0,0.00018698,2]
[350679546,1738059034327,-500.0,0.00018698,2]
[350679547,1738059034336,-1263.01,0.00018698,2]
[350679548,1738059034346,-500.0,0.00018698,2]
[350679549,1738059034355,-647.56,0.00018698,2]
[350679550,1738059034376,-500.0,0.00018698,2]
[350679551,1738059034390,-500.0,0.00018698,2]
[350679552,1738059034410,-500.0,0.00018698,2]
[350679553,1738059034428,-500.0,0.00018698,2]
[350679554,1738059034444,-500.0,0.00018698,2]
[350679555,1738059034458,-378.80758328,0.00018698,2]
[350679556,1738059034475,-557.32,0.00018698,2]
[350679557,1738059034490,-500.0,0.00018698,2]
[350679558,1738059034510,-500.0,0.00018698,2]
[350679559,1738059034528,-500.0,0.00018698,2]
[350679560,1738059034546,-638.47,0.00018698,2]
[350679561,1738059034563,-520.05,0.00018698,2]
[350679562,1738059034578,-500.0,0.00018698,2]
[350679563,1738059034594,-797.66,0.00018698,2]
[350679564,1738059034607,-500.0,0.00018698,2]
[350679565,1738059034621,-997.11,0.00018698,2]
[350679566,1738059034639,-500.0,0.00018698,2]
[350679567,1738059034650,-564.11,0.00018698,2]
[350679568,1738059034664,-500.0,0.00018698,2]
[350679569,1738059034680,-943.34,0.00018698,2]
[350679570,1738059034693,-500.0,0.00018698,2]
[350679571,1738059034706,-509.15,0.00018698,2]
[350679572,1738059034720,-890.02,0.00018698,2]
[350679573,1738059034733,-500.0,0.00018698,2]
[350679574,1738059034749,-500.0,0.00018698,2]
[350679575,1738059034763,-983.08,0.00018698,2]
[350679576,1738059034777,-500.0,0.00018698,2]
[350679577,1738059034790,-500.0,0.00018698,2]
[350679578,1738059034804,-783.88,0.00018698,2]
[350679579,1738059034818,-569.13,0.00018698,2]
[350679580,1738059034830,-829.62,0.00018698,2]
[350679581,1738059034844,-500.0,0.00018698,2]
[350679582,1738059034857,-500.0,0.00018698,2]
[350679583,1738059034869,-500.0,0.00018698,2]
[350679584,1738059034883,-580.02,0.00018698,2]
[350679585,1738059034896,-71.13220778,0.00018698,2]
[350679586,1738059034916,-1267.89779222,0.00018698,2]
[350679587,1738059034929,-500.0,0.00018698,2]
[350679588,1738059034943,-1056.28,0.00018698,2]
[350679589,1738059034957,-802.75,0.00018698,2]
[350679590,1738059034970,-500.0,0.00018698,2]
[350679591,1738059034983,-500.0,0.00018698,2]
[350679592,1738059034996,-500.0,0.00018698,2]
[350679593,1738059035010,-500.0,0.00018698,2]
[350679594,1738059035022,-500.0,0.00018698,2]
[350679595,1738059035036,-500.0,0.00018698,2]
[350679596,1738059035049,-948.94,0.00018698,2]
[350679597,1738059035062,-500.0,0.00018698,2]
[350679598,1738059035075,-500.0,0.00018698,2]
[350679599,1738059035088,-715.24,0.00018698,2]
[350679600,1738059035101,-1256.06,0.00018698,2]
[350679601,1738059035115,-500.0,0.00018698,2]
[350679602,1738059035127,-500.0,0.00018698,2]
[350679603,1738059035141,-500.0,0.00018698,2]
[350679604,1738059035154,-911.02,0.00018698,2]
[350679605,1738059035167,-948.59,0.00018698,2]
[350679606,1738059035180,-223.62399793,0.00018698,2]
[350679607,1738059035194,-160.3065764,0.00018698,2]
[350679608,1738059035207,-150.0,0.00018712,2]
[350679609,1738059035221,-438.07,0.00018712,2]
[350679610,1738059035237,-386.95,0.00018712,2]
[350679611,1738059035250,-150.0,0.00018712,2]
[350679612,1738059035263,-150.59,0.00018712,2]
[350679613,1738059035278,-150.0,0.00018712,2]
[350679614,1738059035291,-150.0,0.00018712,2]
[350679615,1738059035305,-298.31,0.00018712,2]
[350679616,1738059035319,-150.0,0.00018712,2]
[350679617,1738059035333,-298.31,0.00018712,2]
[350679618,1738059035346,-298.31,0.00018712,2]
[350679619,1738059035359,-362.0,0.00018758,2]
[350679620,1738059035373,-1000.0,0.00018866,2]
[350679621,1738059035386,-305.947,0.00018892,2]
[350679622,1738059035400,-5000.0,0.00018897,2]
[350679623,1738059035413,-420.0,0.00018909,2]
[350679624,1738059035426,-352.91,0.00018913,2]
[350679625,1738059035440,-289.0,0.0001892,2]
[350679626,1738059035454,-211.0,0.0001892,2]
[350679627,1738059035467,-1355.33,0.00018987,2]
[350679628,1738059035476,-504.52377445,0.00018996,2]
[350679629,1738059035486,-515.81,0.00018996,2]
[350679630,1738059035677,-2529.56,0.00018996,2]
[350679631,1738059035701,-2827.79,0.00018996,2]
[350679632,1738059035710,-2806.07,0.00018996,2]
[350679633,1738059035719,-3570.32,0.00018996,2]
[350679634,1738059035728,-2128.13,0.00018996,2]
[350679635,1738059035737,-1995.45,0.00018996,2]
[350679636,1738059035746,-825.41,0.00018996,2]
[350679637,1738059035755,-500.0,0.00018996,2]
[350679638,1738059035764,-500.0,0.00018996,2]
[350679639,1738059035773,-500.0,0.00018996,2]
[350679640,1738059035782,-500.0,0.00018996,2]
[350679641,1738059035791,-1613.94,0.00018996,2]
[350679642,1738059035800,-1611.86,0.00018996,2]
[350679643,1738059035810,-1890.01,0.00018996,2]
[350679644,1738059035818,-1164.22,0.00018996,2]
[350679645,1738059035827,-500.0,0.00018996,2]
[350679646,1738059035836,-500.0,0.00018996,2]
[350679647,1738059035845,-500.0,0.00018996,2]
[350679648,1738059035854,-3620.81,0.00018996,2]
[350679649,1738059035863,-500.0,0.00018996,2]
[350679650,1738059035872,-2170.81,0.00018996,2]
[350679651,1738059035881,-500.0,0.00018997,2]
[350679652,1738059035890,-500.0,0.00018997,2]
[350679653,1738059035899,-554.6713836,0.00018997,2]
[350679654,1738059035908,-505.46171567,0.00018997,2]
[350679655,1738059035917,-500.0,0.00018997,2]
[350679656,1738059035927,-500.0,0.00018997,2]
[350679657,1738059035936,-500.0,0.00018997,2]
[350679658,1738059035945,-500.0,0.00018997,2]
[350679659,1738059035955,-500.0,0.00018997,2]
[350679660,1738059035964,-941.78,0.00018997,2]
[350679661,1738059035973,-500.0,0.00018997,2]
[350679662,1738059035982,-500.0,0.00018997,2]
[350679663,1738059035990,-791.82,0.00018997,2]
[350679664,1738059035999,-1188.02,0.00018997,2]
[350679665,1738059036010,-500.0,0.00018997,2]
[350679666,1738059036019,-529.09,0.00018997,2]
[350679667,1738059036028,-500.0,0.00018997,2]
[350679668,1738059036037,-500.0,0.00018997,2]
[350679669,1738059036046,-500.0,0.00018997,2]
[350679670,1738059036062,-500.0,0.00018997,2]
[350679671,1738059036071,-280.69056767,0.00018997,2]
[350679672,1738059036080,-500.0,0.00018997,2]
[350679673,1738059036089,-864.76,0.00018997,2]
[350679674,1738059036098,-500.0,0.00018997,2]
[350679675,1738059036107,-500.0,0.00018997,2]
[350679676,1738059036116,-500.0,0.00018997,2]
[350679677,1738059036125,-500.0,0.00018997,2]
[350679678,1738059036135,-500.0,0.00018997,2]
[350679679,1738059036143,-1312.13,0.00018997,2]
[350679680,1738059036153,-500.0,0.00018997,2]
[350679681,1738059036162,-646.46655545,0.00018997,2]
[350679682,1738059036171,-500.0,0.00018997,2]
[350679683,1738059036179,-500.0,0.00018997,2]
[350679684,1738059036188,-500.0,0.00018997,2]
[350679685,1738059036198,-500.0,0.00018997,2]
[350679686,1738059036207,-985.18,0.00018997,2]
[350679687,1738059036216,-500.0,0.00018997,2]
[350679688,1738059036225,-500.0,0.00018997,2]
[350679689,1738059036238,-1330.34,0.00018997,2]
[350679690,1738059036247,-500.0,0.00018997,2]
[350679691,1738059036257,-500.0,0.00018997,2]
[350679692,1738059036267,-500.8,0.00018997,2]
[350679693,1738059036276,-500.0,0.00018997,2]
[350679694,1738059036285,-500.0,0.00018997,2]
[350679695,1738059036294,-500.0,0.00018997,2]
[350679696,1738059036304,-500.0,0.00018997,2]
[350679697,1738059036315,-500.0,0.00018997,2]
[350679698,1738059036324,-673.45,0.00018997,2]
[350679699,1738059036334,-500.0,0.00018997,2]
[350679700,1738059036343,-797.6,0.00018997,2]
[350679701,1738059036352,-500.0,0.00018997,2]
[350679702,1738059036361,-500.0,0.00018997,2]
[350679703,1738059036370,-500.0,0.00018997,2]
[350679704,1738059036379,-500.0,0.00018997,2]
[350679705,1738059036388,-500.0,0.00018997,2]
[350679706,1738059036398,-548.03,0.00018997,2]
[350679707,1738059036408,-500.0,0.00018997,2]
[350679708,1738059036418,-500.0,0.00018997,2]
[350679709,1738059036428,-602.94,0.00018997,2]
[350679710,1738059036438,-500.0,0.00018997,2]
[350679711,1738059036449,-500.0,0.00018997,2]
[350679712,1738059036459,-500.0,0.00018997,2]
[350679713,1738059036468,-549.56,0.00018997,2]
[350679714,1738059036478,-500.0,0.00018997,2]
[350679715,1738059036487,-500.0,0.00018997,2]
[350679716,1738059036496,-500.0,0.00018997,2]
[350679717,1738059036506,-500.0,0.00018997,2]
[350679718,1738059036516,-534.36,0.00018997,2]
[350679719,1738059036525,-500.0,0.00018997,2]
[350679720,1738059036535,-500.0,0.00018997,2]
[350679721,1738059036544,-500.0,0.00018997,2]
[350679722,1738059036554,-500.0,0.00018997,2]
[350679723,1738059036563,-500.0,0.00018997,2]
[350679724,1738059036572,-500.0,0.00018997,2]
[350679725,1738059036582,-1176.31,0.00018997,2]
[350679726,1738059036591,-500.0,0.00018997,2]
[350679727,1738059036601,-843.34,0.00018997,2]
[350679728,1738059036610,-501.97219329,0.00018997,2]
[350679729,1738059036620,-500.0,0.00018997,2]
[350679730,1738059036629,-500.0,0.00018997,2]
[350679731,1738059036639,-513.51131944,0.00018997,2]
[350679732,1738059036648,-724.49,0.00018997,2]
[350679733,1738059036658,-617.69,0.00018997,2]
[350679734,1738059036667,-500.0,0.00018997,2]
[350679735,1738059036676,-500.0,0.00018997,2]
[350679736,1738059036685,-500.0,0.00018997,2]
[350679737,1738059036695,-553.96341196,0.00018997,2]
[350679738,1738059036704,-500.0,0.00018997,2]
[350679739,1738059036713,-500.0,0.00018997,2]
[350679740,1738059036723,-500.0,0.00018997,2]
[350679741,1738059036736,-500.0,0.00018997,2]
[350679742,1738059036746,-812.64,0.00018997,2]
[350679743,1738059036757,-500.0,0.00018997,2]
[350679744,1738059036767,-500.0,0.00018997,2]
[350679745,1738059036776,-500.0,0.00018997,2]
[350679746,1738059036785,-500.0,0.00018997,2]
[350679747,1738059036795,-500.0,0.00018997,2]
[350679748,1738059036804,-500.0,0.00018997,2]
[350679749,1738059036814,-500.0,0.00018997,2]
[350679750,1738059036823,-524.73,0.00018997,2]
[350679751,1738059036833,-500.0,0.00018997,2]
[350679752,1738059036842,-500.0,0.00018997,2]
[350679753,1738059036856,-500.0,0.00018997,2]
[350679754,1738059036865,-262.58106227,0.00018997,2]
[350679755,1738059036875,-632.48778912,0.00018997,2]
[350679756,1738059036884,-525.49,0.00018997,2]
[350679757,1738059036893,-500.0,0.00018997,2]
[350679758,1738059036903,-500.0,0.00018997,2]
[350679759,1738059036913,-500.0,0.00018997,2]
[350679760,1738059036922,-500.0,0.00018997,2]
[350679761,1738059036932,-500.0,0.00018997,2]
[350679762,1738059036942,-500.0,0.00018997,2]
[350679763,1738059036952,-500.0,0.00018997,2]
[350679764,1738059036962,-500.0,0.00018997,2]
[350679765,1738059036972,-500.0,0.00018997,2]
[350679766,1738059036982,-626.86533167,0.00018997,2]
[350679767,1738059036991,-500.0,0.00018997,2]
[350679768,1738059037005,-543.35,0.00018997,2]
[350679769,1738059037015,-500.0,0.00018997,2]
[350679770,1738059037025,-500.0,0.00018997,2]
[350679771,1738059037035,-500.0,0.00018997,2]
[350679772,1738059037044,-500.0,0.00018997,2]
[350679773,1738059037054,-500.0,0.00018997,2]
[350679774,1738059037063,-500.0,0.00018997,2]
[350679775,1738059037072,-500.0,0.00018997,2]
[350679776,1738059037081,-500.0,0.00018997,2]
[350679777,1738059037091,-500.0,0.00018997,2]
[350679778,1738059037100,-500.0,0.00018997,2]
[350679779,1738059037109,-500.0,0.00018997,2]
[350679780,1738059037119,-500.0,0.00018997,2]
[350679781,1738059037128,-500.0,0.00018997,2]
[350679782,1738059037138,-871.5,0.00018997,2]
[350679783,1738059037147,-500.0,0.00018997,2]
[350679784,1738059037157,-500.0,0.00018997,2]
[350679785,1738059037167,-1075.57,0.00018997,2]
[350679786,1738059037176,-500.0,0.00018997,2]
[350679787,1738059037186,-500.0,0.00018997,2]
[350679788,1738059037195,-500.0,0.00018997,2]
[350679789,1738059037205,-500.0,0.00018997,2]
[350679790,1738059037214,-683.68,0.00018997,2]
[350679791,1738059037224,-500.0,0.00018997,2]
[350679792,1738059037239,-500.0,0.00018997,2]
[350679793,1738059037249,-500.0,0.00018997,2]
[350679794,1738059037259,-500.0,0.00018997,2]
[350679795,1738059037269,-500.0,0.00018997,2]
[350679796,1738059037278,-500.0,0.00018997,2]
[350679797,1738059037288,-500.0,0.00018997,2]
[350679798,1738059037297,-1436.05,0.00018997,2]
[350679799,1738059037309,-500.0,0.00018997,2]
[350679800,1738059037319,-500.0,0.00018997,2]
[350679801,1738059037329,-500.0,0.00018997,2]
[350679802,1738059037339,-426.49245509,0.00018997,2]
[350679803,1738059037349,-500.0,0.00018997,2]
[350679804,1738059037359,-553.84510405,0.00018997,2]
[350679805,1738059037369,-500.0,0.00018997,2]
[350679806,1738059037378,-500.0,0.00018997,2]
[350679807,1738059037388,-516.7412286,0.00018997,2]
[350679808,1738059037398,-500.0,0.00018997,2]
[350679809,1738059037408,-382.85,0.00018997,2]
[350679810,1738059037418,-852.21,0.00018997,2]
[350679811,1738059037428,-500.0,0.00018997,2]
[350679812,1738059037438,-500.0,0.00018997,2]
[350679813,1738059037448,-500.0,0.00018997,2]
[350679814,1738059037458,-500.0,0.00018997,2]
[350679815,1738059037468,-608.46,0.00018997,2]
[350679816,1738059037479,-500.0,0.00018997,2]
[350679817,1738059037489,-500.0,0.00018997,2]
[350679818,1738059037499,-500.0,0.00018997,2]
[350679819,1738059037510,-500.0,0.00018997,2]
[350679820,1738059037520,-500.0,0.00018997,2]
[350679821,1738059037530,-500.0,0.00018997,2]
[350679822,1738059037540,-161.9786098,0.00018997,2]
[350679823,1738059037550,-500.0,0.00018997,2]
[350679824,1738059037560,-924.85,0.00018997,2]
[350679825,1738059037570,-500.0,0.00018997,2]
[350679826,1738059037580,-653.86,0.00018997,2]
[350679827,1738059037590,-500.0,0.00018997,2]
[350679828,1738059037600,-500.0,0.00018997,2]
[350679829,1738059037610,-500.0,0.00018997,2]
[350679830,1738059037620,-618.65961579,0.00018997,2]
[350679831,1738059037630,-500.0,0.00018997,2]
[350679832,1738059037640,-703.17,0.00018997,2]
[350679833,1738059037650,-1038.6,0.00018997,2]
[350679834,1738059037660,-500.0,0.00018997,2]
[350679835,1738059037670,-500.0,0.00018997,2]
[350679836,1738059037680,-500.0,0.00018997,2]
[350679837,1738059037690,-530.38735999,0.00018997,2]
[350679838,1738059037700,-500.0,0.00018997,2]
[350679839,1738059037710,-504.87406805,0.00018997,2]
[350679840,1738059037720,-505.90959443,0.00018997,2]
[350679841,1738059037730,-500.0,0.00018997,2]
[350679842,1738059037740,-500.0,0.00018997,2]
[350679843,1738059037750,-500.0,0.00018997,2]
[350679844,1738059037761,-515.75,0.00018997,2]
[350679845,1738059037771,-500.0,0.00018997,2]
[350679846,1738059037781,-500.0,0.00018997,2]
[350679847,1738059037791,-578.23668593,0.00018997,2]
[350679848,1738059037800,-500.0,0.00018997,2]
[350679849,1738059037810,-500.0,0.00018997,2]
[350679850,1738059037819,-500.0,0.00018997,2]
[350679851,1738059037829,-500.0,0.00018997,2]
[350679852,1738059037838,-500.0,0.00018997,2]
[350679853,1738059037847,-249.76465837,0.00018997,2]
[350679854,1738059037856,-500.0,0.00018997,2]
[350679855,1738059037866,-500.0,0.00018997,2]
[350679856,1738059037876,-567.01316789,0.00018997,2]
[350679857,1738059037885,-500.0,0.00018997,2]
[350679858,1738059037895,-500.0,0.00018997,2]
[350679859,1738059037904,-500.0,0.00018997,2]
[350679860,1738059037913,-500.0,0.00018997,2]
[350679861,1738059037922,-504.55895749,0.00018997,2]
[350679862,1738059037931,-500.0,0.00018997,2]
[350679863,1738059037941,-1129.66,0.00018997,2]
[350679864,1738059037950,-606.59283791,0.00018997,2]
[350679865,1738059037960,-500.0,0.00018997,2]
[350679866,1738059037970,-500.0,0.00018997,2]
[350679867,1738059037979,-500.0,0.00018997,2]
[350679868,1738059037989,-500.0,0.00018997,2]
[350679869,1738059038136,-500.0,0.00018997,2]
[350679870,1738059038146,-500.0,0.00018997,2]
[350679871,1738059038155,-500.0,0.00018997,2]
[350679872,1738059038165,-500.0,0.00018997,2]
[350679873,1738059038174,-500.0,0.00018997,2]
[350679874,1738059038184,-500.0,0.00018997,2]
[350679875,1738059038193,-500.0,0.00018997,2]
[350679876,1738059038203,-501.29592556,0.00018997,2]
[350679877,1738059038212,-500.0,0.00018997,2]
[350679878,1738059038222,-500.0,0.00018997,2]
[350679879,1738059038235,-601.24,0.00018997,2]
[350679880,1738059038245,-500.0,0.00018997,2]
[350679881,1738059038255,-500.0,0.00018997,2]
[350679882,1738059038264,-500.0,0.00018997,2]
[350679883,1738059038274,-500.0,0.00018997,2]
[350679884,1738059038283,-500.0,0.00018997,2]
[350679885,1738059038293,-315.25399988,0.00018997,2]
[350679886,1738059038303,-188.29729065,0.00018997,2]
[350679887,1738059038314,-500.0,0.00018997,2]
[350679888,1738059038323,-504.99479441,0.00018997,2]
[350679889,1738059038332,-500.0,0.00018997,2]
[350679890,1738059038341,-500.0,0.00018997,2]
[350679891,1738059038351,-500.0,0.00018997,2]
[350679892,1738059038360,-500.0,0.00018997,2]
[350679893,1738059038370,-1597.16,0.00018997,2]
[350679894,1738059038379,-500.0,0.00018997,2]
[350679895,1738059038388,-500.0,0.00018997,2]
[350679896,1738059038398,-500.0,0.00018997,2]
[350679897,1738059038408,-500.0,0.00018997,2]
[350679898,1738059038418,-1101.21,0.00018997,2]
[350679899,1738059038428,-500.0,0.00018997,2]
[350679900,1738059038438,-3143.84,0.00018997,2]
[350679901,1738059038448,-500.0,0.00018997,2]
[350679902,1738059038458,-500.0,0.00018997,2]
[350679903,1738059038467,-500.0,0.00018997,2]
[350679904,1738059038477,-684.24,0.00018997,2]
[350679905,1738059038487,-500.0,0.00018997,2]
[350679906,1738059038496,-500.0,0.00018997,2]
[350679907,1738059038505,-500.0,0.00018997,2]
[350679908,1738059038515,-552.87834759,0.00018997,2]
[350679909,1738059038525,-500.0,0.00018997,2]
[350679910,1738059038534,-1566.07,0.00018997,2]
[350679911,1738059038545,-500.0,0.00018997,2]
[350679912,1738059038555,-523.82070273,0.00018997,2]
[350679913,1738059038565,-505.48399366,0.00018997,2]
[350679914,1738059038575,-500.0,0.00018997,2]
[350679915,1738059038585,-2138.11,0.00018997,2]
[350679916,1738059038594,-500.0,0.00018997,2]
[350679917,1738059038604,-504.48158969,0.00018997,2]
[350679918,1738059038614,-569.76,0.00018997,2]
[350679919,1738059038623,-502.88630892,0.00018997,2]
[350679920,1738059038633,-500.0,0.00018997,2]
[350679921,1738059038642,-2190.81,0.00018997,2]
[350679922,1738059038652,-1330.43,0.00018997,2]
[350679923,1738059038662,-500.0,0.00018997,2]
[350679924,1738059038671,-500.0,0.00018997,2]
[350679925,1738059038681,-500.0,0.00018997,2]
[350679926,1738059038690,-500.0,0.00018997,2]
[350679927,1738059038699,-661.47,0.00018997,2]
[350679928,1738059038709,-500.0,0.00018997,2]
[350679929,1738059038718,-500.0,0.00018997,2]
[350679930,1738059038728,-500.0,0.00018997,2]
[350679931,1738059038738,-500.0,0.00018997,2]
[350679932,1738059038748,-500.0,0.00018997,2]
[350679933,1738059038759,-530.99,0.00018997,2]
[350679934,1738059038768,-503.52959634,0.00018997,2]
[350679935,1738059038778,-504.07435574,0.00018997,2]
[350679936,1738059038788,-500.0,0.00018997,2]
[350679937,1738059038797,-1807.29,0.00018997,2]
[350679938,1738059038807,-500.0,0.00018997,2]
[350679939,1738059038816,-500.0,0.00018997,2]
[350679940,1738059038826,-500.0,0.00018997,2]
[350679941,1738059038835,-500.0,0.00018997,2]
[350679942,1738059038845,-2387.8,0.00018997,2]
[350679943,1738059038855,-1191.74,0.00018997,2]
[350679944,1738059038865,-607.68931433,0.00018997,2]
[350679945,1738059038875,-506.7981605,0.00018997,2]
[350679946,1738059038885,-850.98,0.00018997,2]
[350679947,1738059038895,-500.0,0.00018997,2]
[350679948,1738059038904,-500.0,0.00018997,2]
[350679949,1738059038914,-500.0,0.00018997,2]
[350679950,1738059038923,-709.73,0.00018997,2]
[350679951,1738059038932,-1098.5,0.00018997,2]
[350679952,1738059038942,-2899.51,0.00018997,2]
[350679953,1738059038951,-500.0,0.00018997,2]
[350679954,1738059038960,-500.0,0.00018997,2]
[350679955,1738059038971,-500.0,0.00018997,2]
[350679956,1738059038981,-616.9,0.00018997,2]
[350679957,1738059038994,-504.46738358,0.00018997,2]
[350679958,1738059039003,-503.29233782,0.00018997,2]
[350679959,1738059039014,-500.0,0.00018997,2]
[350679960,1738059039024,-500.0,0.00018997,2]
[350679961,1738059039033,-350.69,0.00018997,2]
[350679962,1738059039042,-500.0,0.00018997,2]
[350679963,1738059039052,-500.0,0.00018997,2]
[350679964,1738059039061,-500.0,0.00018997,2]
[350679965,1738059039070,-500.0,0.00018997,2]
[350679966,1738059039079,-500.0,0.00018997,2]
[350679967,1738059039089,-500.0,0.00018997,2]
[350679968,1738059039099,-853.55,0.00018997,2]
[350679969,1738059039108,-500.0,0.00018997,2]
[350679970,1738059039117,-673.5,0.00018997,2]
[350679971,1738059039127,-549.22,0.00018997,2]
[350679972,1738059039136,-500.0,0.00018997,2]
[350679973,1738059039145,-500.0,0.00018997,2]
[350679974,1738059039155,-500.0,0.00018997,2]
[350679975,1738059039164,-996.76,0.00018997,2]
[350679976,1738059039173,-572.69,0.00018997,2]
[350679977,1738059039183,-500.0,0.00018997,2]
[350679978,1738059039192,-500.0,0.00018997,2]
[350679979,1738059039201,-818.88,0.00018997,2]
[350679980,1738059039211,-500.0,0.00018997,2]
[350679981,1738059039220,-279.4186444,0.00018997,2]
[350679982,1738059039234,-457.0508699,0.00018997,2]
[350679983,1738059039243,-500.0,0.00018997,2]
[350679984,1738059039252,-500.29632484,0.00018997,2]
[350679985,1738059039263,-500.0,0.00018997,2]
[350679986,1738059039273,-500.0,0.00018997,2]
[350679987,1738059039282,-500.0,0.00018997,2]
[350679988,1738059039291,-500.0,0.00018997,2]
[350679989,1738059039301,-500.0,0.00018997,2]
[350679990,1738059039312,-1611.86,0.00018997,2]
[350679991,1738059039322,-500.0,0.00018997,2]
[350679992,1738059039332,-500.0,0.00018997,2]
[350679993,1738059039341,-784.5,0.00018997,2]
[350679994,1738059039351,-901.28,0.00018997,2]
[350679995,1738059039360,-500.0,0.00018997,2]
[350679996,1738059039369,-500.0,0.00018997,2]
[350679997,1738059039379,-500.0,0.00018997,2]
[350679998,1738059039388,-500.0,0.00018997,2]
[350679999,1738059039397,-500.0,0.00018997,2]
[350680000,1738059039406,-500.0,0.00018997,2]
[350680001,1738059039416,-500.0,0.00018997,2]